bitfinex/quotes_BTCUSD_20251120
["timestamp","ask_amount","ask_price","bid_price","bid_amount"]
[1763639900810,0.30311182,92022.0,92021.0,2.17159462]
[1763639901223,0.32347514,92022.0,92021.0,2.17159462]
[1763639901441,0.43215642,92022.0,92021.0,2.17159462]
[1763639904686,0.32347514,92022.0,92021.0,2.17159462]
[1763639905264,0.30311182,92022.0,92021.0,2.17159462]
[1763639908430,0.32347268,92022.0,92021.0,2.17159462]
[1763639908992,0.32347268,92022.0,92021.0,2.16791462]
[1763639909193,0.32347268,92022.0,92021.0,2.17159462]
[1763639909740,0.30311182,92022.0,92021.0,2.17159462]
[1763639909942,0.28647182,92022.0,92021.0,2.17159462]
[1763639911364,0.32347619,92022.0,92021.0,2.17159462]
[1763639911567,0.30311182,92022.0,92021.0,2.17159462]
[1763639914472,0.32347943,92022.0,92021.0,2.17159462]
[1763639915101,0.30311182,92022.0,92021.0,2.17159462]
[1763639915506,0.40975672,92022.0,92021.0,2.17159462]
[1763639915704,0.43012575,92022.0,92021.0,2.17159462]
[1763639917929,0.32348085,92022.0,92021.0,2.17159462]
[1763639918135,0.32348085,92022.0,92021.0,2.16791462]
[1763639918337,0.32348085,92022.0,92021.0,2.17159462]
[1763639925955,0.32342202,92022.0,92021.0,2.17159462]
[1763639926159,0.30678202,92022.0,92021.0,2.17159462]
[1763639926364,0.30680724,92022.0,92021.0,2.17159462]
[1763639926565,0.29077724,92022.0,92021.0,2.17159462]
[1763639928406,0.30708724,92022.0,92021.0,2.17159462]
[1763639929907,0.30708724,92022.0,92021.0,0.00368]
[1763639930449,0.29083607,92022.0,92021.0,0.00368]
[1763639930861,0.39791673,92022.0,92021.0,0.00368]
[1763639932336,0.29083607,92022.0,92021.0,0.00368]
[1763639934484,0.07349674,92022.0,92021.0,0.00368]
[1763639934899,0.29083607,92022.0,92021.0,0.00368]
[1763639935927,0.21734641,92019.0,92018.0,0.00023164]
[1763639936154,0.39338919,92019.0,92018.0,2.16814626]
[1763639936325,0.32279315,92019.0,92018.0,2.17182626]
[1763639936885,0.32279315,92019.0,92018.0,1.97672036]
[1763639937106,0.32379315,92019.0,92018.0,1.08692361]
[1763639937312,0.32379315,92019.0,92018.0,2.17159462]
[1763639940937,0.32379315,92019.0,92018.0,2.16791462]
[1763639941142,0.43295809,92019.0,92018.0,2.16791462]
[1763639941340,0.75595809,92019.0,92018.0,2.16791462]
[1763639942036,0.75495809,92019.0,92018.0,2.16791462]
[1763639942386,0.75595809,92019.0,92018.0,2.16791462]
[1763639943162,0.75695809,92019.0,92018.0,2.16791462]
[1763639943577,0.75695809,92019.0,92018.0,1.08467101]
[1763639943976,0.75695809,92019.0,92018.0,2.16791462]
[1763639945915,0.78960065,92019.0,92018.0,2.16791462]
[1763639947598,0.78860065,92019.0,92018.0,2.16791462]
[1763639947856,0.78960065,92019.0,92018.0,2.16791462]
[1763639948441,0.78860065,92019.0,92018.0,2.16791462]
[1763639948643,0.78960065,92019.0,92018.0,2.16791462]
[1763639956347,0.79977993,92019.0,92018.0,2.16791462]
[1763639956554,0.78960065,92019.0,92018.0,2.16791462]
[1763639957254,0.78760065,92019.0,92018.0,2.16791462]
[1763639957729,0.78860065,92019.0,92018.0,2.16791462]
[1763639958481,0.79060065,92019.0,92018.0,2.16791462]
[1763639959056,0.80077875,92019.0,92018.0,2.16791462]
[1763639959478,0.80074065,92019.0,92018.0,2.16791462]
[1763639960681,0.69157571,92019.0,92018.0,2.16791462]
[1763639961288,0.62929512,92019.0,92018.0,2.16791462]
[1763639961527,0.60893897,92019.0,92018.0,2.16791462]
[1763639961765,0.68139796,92019.0,92018.0,2.16791462]
[1763639962124,0.67939796,92019.0,92018.0,2.16791462]
[1763639962951,0.68039796,92019.0,92018.0,2.16791462]
[1763639966276,0.26946308,92013.0,92012.0,0.00368]
[1763639966482,0.28981958,92013.0,92012.0,2.17159462]
[1763639967460,0.29081958,92013.0,92012.0,2.17159462]
[1763639969241,0.29181958,92013.0,92012.0,2.17159462]
[1763639975581,0.30736958,92013.0,92012.0,2.17159462]
[1763639976988,0.39689679,92013.0,92012.0,2.17159462]
[1763639980919,0.41353679,92013.0,92012.0,2.17159462]
[1763639981948,0.32400958,92013.0,92012.0,2.16791462]
[1763639982283,0.32400958,92013.0,92012.0,2.17159462]
[1763639984659,0.32400958,92013.0,92012.0,2.16791462]
[1763639987123,0.32404257,92013.0,92012.0,2.16791462]
[1763639988594,0.35668726,92013.0,92012.0,2.16791462]
[1763639988794,0.46437773,92013.0,92012.0,2.16791462]
[1763639991774,0.44398824,92013.0,92012.0,2.16791462]
[1763639991989,0.46438626,92013.0,92012.0,2.16791462]
[1763639996677,0.46438433,92013.0,92012.0,1.08467101]
[1763639996906,0.4641784,92013.0,92012.0,1.08467101]
[1763639997097,0.4641784,92013.0,92010.0,0.00023167]
[1763639997098,0.2694678,92011.0,92010.0,0.00023167]
[1763639997298,0.2694678,92011.0,92010.0,2.16814629]
[1763639997299,0.39898787,92011.0,92010.0,2.16814629]
[1763639997507,0.41562787,92011.0,92010.0,2.16814629]
[1763639998004,0.44827277,92011.0,92010.0,2.16814629]
[1763639998240,0.77127277,92011.0,92010.0,2.16814629]
[1763639998699,0.67769879,92011.0,92010.0,2.16814629]
[1763639999294,0.68889619,92011.0,92010.0,2.16814629]
[1763639999692,0.68789619,92011.0,92010.0,2.16814629]
[1763640000100,0.7000278,92011.0,92010.0,2.16814629]
[1763640000316,0.68889619,92011.0,92010.0,2.16814629]
[1763640000522,0.68789619,92011.0,92010.0,2.16814629]
[1763640000770,0.67769879,92011.0,92010.0,2.16814629]
[1763640001095,0.67869879,92011.0,92010.0,2.16814629]
[1763640001302,0.75154024,92011.0,92010.0,2.16814629]
[1763640001501,0.67769879,92011.0,92010.0,2.16814629]
[1763640001744,0.66205879,92011.0,92010.0,2.16814629]
[1763640001958,0.64650879,92011.0,92010.0,2.17182629]
[1763640002159,0.2397614,92011.0,92010.0,2.17182629]
[1763640002710,0.2387614,92011.0,92010.0,2.17182629]
[1763640002913,0.29086389,92011.0,92010.0,2.17182629]
[1763640003116,0.29186389,92011.0,92010.0,2.17182629]
[1763640003497,0.30679389,92011.0,92010.0,2.17182629]
[1763640003705,0.42031759,92011.0,92010.0,2.17182629]
[1763640006287,0.42031759,92011.0,92010.0,2.16814629]
[1763640006506,0.74331759,92011.0,92010.0,2.16814629]
[1763640007167,0.74231759,92011.0,92010.0,2.16814629]
[1763640007376,0.62879389,92011.0,92010.0,2.16814629]
[1763640007802,0.30679389,92011.0,92010.0,2.16814629]
[1763640008055,0.29086389,92011.0,92010.0,2.16814629]
[1763640008693,0.28986389,92011.0,92010.0,2.16814629]
[1763640008905,0.30779389,92011.0,92010.0,2.16814629]
[1763640009518,0.43359883,92011.0,92010.0,2.16814629]
[1763640009725,0.75659883,92011.0,92010.0,2.16814629]
[1763640009941,0.75559883,92011.0,92010.0,2.16814629]
[1763640010162,0.75459883,92011.0,92010.0,2.16814629]
[1763640010572,0.75559883,92011.0,92010.0,2.16814629]
[1763640010798,0.6260378,92011.0,92010.0,2.16814629]
[1763640011011,0.64643252,92011.0,92010.0,2.16814629]
[1763640011415,0.64743252,92011.0,92010.0,2.16814629]
[1763640011839,0.65763035,92011.0,92010.0,2.16814629]
[1763640012253,0.76579529,92011.0,92010.0,2.16814629]
[1763640012453,0.78724346,92011.0,92010.0,2.16814629]
[1763640012625,0.67807852,92011.0,92010.0,2.16814629]
[1763640012848,0.67907852,92011.0,92010.0,2.16814629]
[1763640013392,0.67907831,92011.0,92010.0,2.16814629]
[1763640013991,0.68927556,92011.0,92010.0,2.16814629]
[1763640014199,0.69027556,92011.0,92010.0,2.16814629]
[1763640014440,0.7994405,92011.0,92010.0,2.16814629]
[1763640015270,0.78924325,92011.0,92010.0,2.16814629]
[1763640016010,0.79943972,92011.0,92010.0,2.16814629]
[1763640018398,0.78924325,92011.0,92010.0,2.16814629]
[1763640019410,0.68007831,92011.0,92010.0,2.16814629]
[1763640024460,0.69027298,92011.0,92010.0,2.16814629]
[1763640027415,0.69027298,92011.0,92010.0,0.00023167]
[1763640029323,0.69027279,92011.0,92010.0,0.00023167]
[1763640030728,0.71376169,92011.0,92010.0,0.00023167]
[1763640030901,0.82292663,92011.0,92010.0,0.00023167]
[1763640031524,0.82092663,92011.0,92010.0,0.00023167]
[1763640031675,0.82192663,92011.0,92010.0,0.00023167]
[1763640031884,0.82292663,92011.0,92010.0,0.00023167]
[1763640035812,0.22832787,91973.0,91972.0,0.00368]
[1763640036046,0.05210249,91991.0,91972.0,0.00368]
[1763640036047,0.05210249,91982.0,91974.0,0.22832514]
[1763640036265,0.2283114,91980.0,91977.0,0.01642]
[1763640036468,0.22830585,91982.0,91978.0,0.01076608]
[1763640036690,0.22831005,91981.0,91978.0,1.09400969]
[1763640036891,0.01087181,91981.0,91979.0,0.01076549]
[1763640037115,0.21743857,91980.0,91979.0,0.01076549]
[1763640037316,0.01129302,91981.0,91979.0,0.01076549]
[1763640038055,0.00042121,91981.0,91979.0,0.22820584]
[1763640038290,0.00042121,91981.0,91978.0,1.08324361]
[1763640038496,0.21743929,91980.0,91979.0,0.01076549]
[1763640038923,0.22873155,91981.0,91978.0,1.30068644]
[1763640039139,0.00042121,91981.0,91979.0,0.21743888]
[1763640039366,0.21743857,91980.0,91979.0,0.01076549]
[1763640039560,0.21744093,91979.0,91978.0,1.08324361]
[1763640040356,0.21743948,91980.0,91978.0,1.08324361]
[1763640040560,0.00042121,91981.0,91980.0,0.21743857]
[1763640040704,0.00042121,91981.0,91980.0,0.23385857]
[1763640040903,0.00042121,91981.0,91980.0,0.25676857]
[1763640045226,0.00042121,91981.0,91979.0,0.00089807]
[1763640045428,0.00042121,91981.0,91980.0,0.00454909]
[1763640045686,0.24196741,91981.0,91980.0,0.00086909]
[1763640045899,0.32987362,91981.0,91980.0,0.00086909]
[1763640046115,0.32987362,91981.0,91980.0,0.00454909]
[1763640046343,0.25809741,91981.0,91980.0,0.00454909]
[1763640046553,0.25809741,91981.0,91980.0,0.00086909]
[1763640046866,0.23398741,91981.0,91980.0,0.00086909]
[1763640047068,0.21785741,91981.0,91980.0,0.00086909]
[1763640047655,0.23398741,91981.0,91980.0,0.00086909]
[1763640047892,0.25809741,91981.0,91980.0,0.00086909]
[1763640049844,0.21785741,91981.0,91980.0,0.00086909]
[1763640053303,0.00042121,91981.0,91980.0,0.00086909]
[1763640053513,0.21785741,91981.0,91980.0,0.00086909]
[1763640054142,0.25809741,91981.0,91980.0,0.00086909]
[1763640054347,0.27848209,91981.0,91980.0,0.00086909]
[1763640054551,0.38412722,91981.0,91980.0,0.00086909]
[1763640055149,0.43622971,91981.0,91980.0,0.00086909]
[1763640055909,0.43722971,91981.0,91980.0,0.00086909]
[1763640056355,0.46988222,91981.0,91980.0,0.00086909]
[1763640056797,0.44949754,91981.0,91980.0,0.00086909]
[1763640056951,0.46988017,91981.0,91980.0,0.00086909]
[1763640057517,0.46888017,91981.0,91980.0,0.00086909]
[1763640058028,0.41677768,91981.0,91980.0,0.00086909]
[1763640058236,0.41777768,91981.0,91980.0,0.00086909]
[1763640058655,0.31202383,91981.0,91980.0,0.00086909]
[1763640061801,0.31202058,91981.0,91980.0,0.00086909]
[1763640062004,0.36412307,91981.0,91980.0,0.00086909]
[1763640063115,0.68712307,91981.0,91980.0,0.00086909]
[1763640064102,0.68612307,91981.0,91980.0,0.00086909]
[1763640064300,0.79528801,91981.0,91980.0,0.00086909]
[1763640064530,0.79628801,91981.0,91980.0,0.00086909]
[1763640064895,0.79728801,91981.0,91980.0,0.00086909]
[1763640065097,0.79628801,91981.0,91980.0,0.00086909]
[1763640065327,0.79528801,91981.0,91980.0,0.00086909]
[1763640065706,0.79628801,91981.0,91980.0,0.00086909]
[1763640067026,0.79728801,91981.0,91980.0,0.00086909]
[1763640067424,0.80646609,91981.0,91980.0,0.00086909]
[1763640067811,0.80646609,91981.0,91978.0,1.08324361]
[1763640067812,0.59254342,91979.0,91978.0,1.08324361]
[1763640068156,0.59254342,91979.0,91950.0,0.0004]
[1763640068157,0.59255761,91973.0,91950.0,0.00408]
[1763640068293,0.62947699,91973.0,91972.0,2.16791462]
[1763640068666,0.66261277,91973.0,91972.0,2.16791462]
[1763640068870,0.77177771,91973.0,91972.0,2.16791462]
[1763640069248,0.76160193,91973.0,91972.0,2.16791462]
[1763640069659,0.65243699,91973.0,91972.0,2.16791462]
[1763640071287,0.65343699,91973.0,91972.0,2.16791462]
[1763640071492,0.7366222,91973.0,91972.0,2.16791462]
[1763640071908,0.7376222,91973.0,91972.0,2.16791462]
[1763640072112,0.77028512,91973.0,91972.0,2.16791462]
[1763640072328,0.87945006,91973.0,91972.0,2.16791462]
[1763640073458,0.87945006,91973.0,91972.0,2.16814644]
[1763640075550,0.68709991,91973.0,91972.0,2.16814644]
[1763640075981,0.27249742,91973.0,91972.0,2.16814644]
[1763640076196,0.28903742,91973.0,91972.0,2.16814644]
[1763640076412,0.36409991,91973.0,91972.0,2.16814644]
[1763640076620,0.36309991,91973.0,91972.0,2.16814644]
[1763640077903,0.36209991,91973.0,91972.0,2.16814644]
[1763640078319,0.36409991,91973.0,91972.0,2.16814644]
[1763640078525,0.36309991,91973.0,91972.0,2.16814644]
[1763640078709,0.36209991,91973.0,91972.0,2.16814644]
[1763640079266,0.36309991,91973.0,91972.0,2.16814644]
[1763640082078,0.27149742,91973.0,91972.0,2.16814644]
[1763640082295,0.27149742,91973.0,91972.0,2.42594392]
[1763640082296,0.001,91973.0,91972.0,2.42594392]
[1763640083054,0.22831051,91980.0,91973.0,0.22832582]
[1763640083055,0.0108724,91976.0,91973.0,0.22832582]
[1763640083246,0.22831768,91979.0,91975.0,0.01087251]
[1763640083489,0.00031249,91981.0,91978.0,0.25576544]
[1763640083697,0.00031249,91981.0,91980.0,0.23343857]
[1763640084337,0.00031249,91981.0,91980.0,0.016]
[1763640084565,0.2286205,91981.0,91978.0,0.01145]
[1763640084720,0.21745512,91973.0,91971.0,0.01145]
[1763640085124,0.21745512,91973.0,91965.0,0.22834704]
[1763640085125,0.25695512,91973.0,91972.0,2.17182644]
[1763640085306,0.23399512,91973.0,91972.0,2.17182644]
[1763640085726,0.3291467,91973.0,91972.0,2.16814644]
[1763640085930,0.3291467,91973.0,91972.0,2.17182644]
[1763640086328,0.25695512,91973.0,91972.0,2.17182644]
[1763640088623,0.23399512,91973.0,91972.0,2.17182644]
[1763640089764,0.23399512,91973.0,91972.0,2.16814644]
[1763640089993,0.25755512,91973.0,91972.0,2.16814644]
[1763640090215,0.2779061,91973.0,91972.0,2.16814644]
[1763640090414,0.35219396,91973.0,91972.0,2.16814644]
[1763640090998,0.40429645,91973.0,91972.0,2.16814644]
[1763640091200,0.72729645,91973.0,91972.0,2.16814644]
[1763640092483,0.72829645,91973.0,91972.0,2.16814644]
[1763640094427,0.72929645,91973.0,91972.0,2.16814644]
[1763640094638,0.65500977,91973.0,91972.0,2.16814644]
[1763640095450,0.68766974,91973.0,91972.0,2.16814644]
[1763640102911,0.68766974,91973.0,91972.0,1.08490283]
[1763640103144,0.68766974,91973.0,91972.0,2.16814644]
[1763640105699,0.66410974,91973.0,91972.0,2.16814644]
[1763640105902,0.64656974,91973.0,91972.0,2.16814644]
[1763640106301,0.66276974,91973.0,91972.0,2.16814644]
[1763640106942,0.66176974,91973.0,91972.0,2.16814644]
[1763640107276,0.63010977,91973.0,91972.0,2.16814644]
[1763640108286,0.63010977,91973.0,91972.0,2.16791462]
[1763640109116,0.63357761,91973.0,91972.0,2.16791462]
[1763640109303,0.65394599,91973.0,91972.0,2.16791462]
[1763640110449,0.67091883,91973.0,91972.0,2.16791462]
[1763640114964,0.67091883,91973.0,91958.0,0.00368]
[1763640114965,0.21748822,91959.0,91958.0,0.00368]
[1763640115154,0.21748822,91959.0,91958.0,2.17159462]
[1763640115489,0.21748822,91959.0,91958.0,2.16791462]
[1763640115646,0.23368822,91959.0,91958.0,2.17159462]
[1763640118437,0.25408545,91959.0,91958.0,2.17159462]
[1763640119198,0.27790545,91959.0,91958.0,2.17159462]
[1763640119869,0.23788545,91959.0,91958.0,2.17159462]
[1763640120427,0.02039723,91959.0,91958.0,2.17159462]
[1763640120606,0.02039723,91959.0,91958.0,2.17200038]
[1763640120807,0.02040583,91959.0,91958.0,2.17200038]
[1763640121030,0.02040583,91959.0,91958.0,2.38949097]
[1763640121467,0.01087358,91966.0,91961.0,0.01087417]
[1763640121721,0.00821,91971.0,91962.0,0.02255506]
[1763640121722,0.01087299,91971.0,91962.0,0.02255506]
[1763640121911,0.01087334,91968.0,91962.0,0.02255506]
[1763640122113,0.03127771,91967.0,91963.0,0.01087393]
[1763640122314,0.02040425,91966.0,91964.0,0.01077412]
[1763640122531,0.02040425,91965.0,91964.0,0.01077412]
[1763640122679,0.21747876,91963.0,91962.0,0.01178]
[1763640122878,0.02040425,91963.0,91962.0,0.01178]
[1763640123890,0.02040425,91963.0,91962.0,0.22926113]
[1763640124413,0.02040425,91963.0,91962.0,0.27022113]
[1763640125177,0.07,91966.0,91962.0,0.27022113]
[1763640125178,0.07,91966.0,91965.0,0.21747403]
[1763640125383,0.3338724,91976.0,91972.0,0.21745725]
[1763640125598,0.21745295,91974.0,91972.0,2.17159462]
[1763640125792,0.21745512,91973.0,91972.0,2.17159462]
[1763640126894,0.23301512,91973.0,91972.0,2.17159462]
[1763640127593,0.23301512,91973.0,91972.0,2.16791462]
[1763640127764,0.30164761,91973.0,91972.0,2.16791462]
[1763640128774,0.30264761,91973.0,91972.0,2.16791462]
[1763640131475,0.40140891,91973.0,91972.0,2.16791462]
[1763640131674,0.62564761,91973.0,91972.0,2.16791462]
[1763640131879,0.62464761,91973.0,91972.0,2.16791462]
[1763640132455,0.62564761,91973.0,91972.0,2.16791462]
[1763640134385,0.63585005,91973.0,91972.0,2.16791462]
[1763640135312,0.62564761,91973.0,91972.0,2.16791462]
[1763640137388,0.64605035,91973.0,91972.0,2.16791462]
[1763640138853,0.57741786,91973.0,91972.0,2.16791462]
[1763640139624,0.57741786,91973.0,91972.0,1.08324361]
[1763640139831,0.57741786,91973.0,91972.0,2.16791462]
[1763640140513,0.59394786,91973.0,91972.0,2.16791462]
[1763640140698,0.59294786,91973.0,91972.0,2.16791462]
[1763640140867,0.59394786,91973.0,91972.0,2.16791462]
[1763640144952,0.59394613,91973.0,91972.0,2.16791462]
[1763640146556,0.70311107,91973.0,91972.0,2.16791462]
[1763640147371,0.75521356,91973.0,91972.0,2.16791462]
[1763640148040,0.64604862,91973.0,91972.0,2.16791462]
[1763640148405,0.64504862,91973.0,91972.0,2.16791462]
[1763640148747,0.64604862,91973.0,91972.0,2.16791462]
[1763640152594,0.59394613,91973.0,91972.0,2.16791462]
[1763640152873,0.34440101,91973.0,91972.0,2.16791462]
[1763640153080,0.23885613,91973.0,91972.0,2.16791462]
[1763640153722,0.23785613,91973.0,91972.0,2.16791462]
[1763640154146,0.23885613,91973.0,91972.0,2.16791462]
[1763640155217,0.25441613,91973.0,91972.0,2.16791462]
[1763640155935,0.23885613,91973.0,91972.0,2.16791462]
[1763640156147,0.02140101,91973.0,91972.0,0.03949]
[1763640156362,0.001,91973.0,91972.0,0.26771711]
[1763640156577,0.001,91973.0,91972.0,0.25694748]
[1763640156816,0.21746694,91968.0,91964.0,0.00023185]
[1763640157026,0.01187275,91973.0,91969.0,0.21746458]
[1763640157236,0.001,91973.0,91970.0,0.22823095]
[1763640157447,0.001,91973.0,91970.0,0.22833349]
[1763640157862,0.01087251,91975.0,91971.0,0.22833063]
[1763640158093,0.02039109,91974.0,91972.0,0.02164226]
[1763640158299,0.21744846,91976.0,91973.0,0.21745439]
[1763640158506,0.02038851,91975.0,91974.0,0.01076844]
[1763640158895,0.02038851,91975.0,91974.0,0.24026119]
[1763640159102,0.02038851,91975.0,91974.0,0.22949275]
[1763640159325,0.02038851,91975.0,91974.0,0.26898275]
[1763640159745,0.00863249,91981.0,91978.0,0.21744255]
[1763640159945,0.00863249,91981.0,91979.0,0.00368]
[1763640159946,0.02038516,91980.0,91979.0,0.00368]
[1763640160152,0.23782373,91980.0,91979.0,0.00368]
[1763640160555,0.25338373,91980.0,91979.0,0.00368]
[1763640161047,0.23299857,91980.0,91979.0,0.00368]
[1763640161226,0.25338115,91980.0,91979.0,0.00368]
[1763640162301,0.25338115,91980.0,91978.0,2.16791462]
[1763640162302,0.21744093,91979.0,91978.0,2.16791462]
[1763640162501,0.24614351,91979.0,91978.0,2.17159462]
[1763640163277,0.24613861,91979.0,91978.0,2.17159462]
[1763640163557,0.26169861,91979.0,91978.0,2.17159462]
[1763640163735,0.26169716,91979.0,91978.0,2.17159462]
[1763640164119,0.26269716,91979.0,91978.0,2.17159462]
[1763640164530,0.26269716,91979.0,91978.0,2.16791462]
[1763640164729,0.26269716,91979.0,91978.0,2.17159462]
[1763640165939,0.26269716,91979.0,91978.0,2.16791462]
[1763640166138,0.37567315,91979.0,91978.0,2.17159462]
[1763640167364,0.37567315,91979.0,91978.0,2.16791462]
[1763640167565,0.27922716,91979.0,91978.0,2.16791462]
[1763640172902,0.26269716,91979.0,91978.0,2.16791462]
[1763640173323,0.26169716,91979.0,91978.0,2.16791462]
[1763640173935,0.27822716,91979.0,91978.0,2.16791462]
[1763640174138,0.27922716,91979.0,91978.0,2.16791462]
[1763640177292,0.25885093,91979.0,91978.0,2.16791462]
[1763640177875,0.27923335,91979.0,91978.0,2.16791462]
[1763640178296,0.25885093,91979.0,91978.0,2.16791462]
[1763640178623,0.27923574,91979.0,91978.0,2.16791462]
[1763640181080,0.26270574,91979.0,91978.0,2.16791462]
[1763640181838,0.27923574,91979.0,91978.0,2.16791462]
[1763640182048,0.29849647,91979.0,91978.0,2.16791462]
[1763640182254,0.27923574,91979.0,91978.0,2.16791462]
[1763640182478,0.24714574,91979.0,91978.0,2.16791462]
[1763640183753,0.24614574,91979.0,91978.0,2.16791462]
[1763640184202,0.24714574,91979.0,91978.0,2.16791462]
[1763640186169,0.26269574,91979.0,91978.0,2.16791462]
[1763640187080,0.33976417,91979.0,91978.0,2.16791462]
[1763640187503,0.39186666,91979.0,91978.0,2.16791462]
[1763640187711,0.42452236,91979.0,91978.0,2.16791462]
[1763640188559,0.42352236,91979.0,91978.0,2.16791462]
[1763640188910,0.42452236,91979.0,91978.0,2.16791462]
[1763640189113,0.74752236,91979.0,91978.0,2.16791462]
[1763640189509,0.74652236,91979.0,91978.0,2.16791462]
[1763640189955,0.74752236,91979.0,91978.0,2.16791462]
[1763640191821,0.68698393,91979.0,91978.0,2.16791462]
[1763640192641,0.2174693,91967.0,91966.0,0.00368]
[1763640192845,0.23785411,91967.0,91966.0,2.17159462]
[1763640193881,0.01087322,91969.0,91966.0,2.21084462]
[1763640194022,0.22833497,91971.0,91969.0,0.21746458]
[1763640194231,0.02039977,91970.0,91969.0,0.21746458]
[1763640195065,0.03127288,91970.0,91967.0,0.01087346]
[1763640195359,0.02039977,91969.0,91968.0,0.21746694]
[1763640195554,0.01087287,91972.0,91968.0,0.21746694]
[1763640195555,0.0203999,91971.0,91969.0,0.21746254]
[1763640195781,0.0203999,91970.0,91969.0,0.21746254]
[1763640197002,0.0203999,91970.0,91969.0,0.22833576]
[1763640197227,0.0203999,91970.0,91969.0,0.21746458]
[1763640198693,0.22831998,91977.0,91973.0,0.21745398]
[1763640198892,0.21745063,91975.0,91973.0,0.22832673]
[1763640199128,0.02039984,91974.0,91973.0,0.01087275]
[1763640199466,0.02039984,91974.0,91972.0,0.22833019]
[1763640199467,0.23785259,91974.0,91972.0,0.22833019]
[1763640199662,0.02039984,91973.0,91972.0,0.22833035]
[1763640200103,0.02040008,91974.0,91973.0,0.21745512]
[1763640200277,0.03127308,91974.0,91971.0,0.21745531]
[1763640200488,0.0312732,91973.0,91970.0,0.22833106]
[1763640200639,0.02040045,91972.0,91970.0,0.22833106]
[1763640200851,0.02040045,91971.0,91970.0,0.01087311]
[1763640201255,0.02040049,91971.0,91970.0,0.01087311]
[1763640201641,0.02040049,91971.0,91970.0,0.22833532]
[1763640202150,0.02040049,91971.0,91969.0,0.22833736]
[1763640202395,0.2283289,91973.0,91970.0,0.21746196]
[1763640202600,0.0204007,91972.0,91971.0,0.22833089]
[1763640202822,0.01087311,91970.0,91965.0,0.0231737]
[1763640203034,0.2174693,91967.0,91964.0,0.00023185]
[1763640203250,0.24608017,91967.0,91964.0,0.00023185]
[1763640203484,0.26163088,91967.0,91964.0,0.00023185]
[1763640206595,0.33026337,91967.0,91966.0,2.16791462]
[1763640209247,0.33126337,91967.0,91966.0,2.16791462]
[1763640209477,0.76088325,91967.0,91966.0,2.16791462]
[1763640209760,0.77008009,91967.0,91966.0,2.16791462]
[1763640209983,0.77108009,91967.0,91966.0,2.16791462]
[1763640210196,0.76088325,91967.0,91966.0,2.16791462]
[1763640210610,0.75988325,91967.0,91966.0,2.16791462]
[1763640211048,0.7710766,91967.0,91966.0,2.16791462]
[1763640212094,0.7720766,91967.0,91966.0,2.16791462]
[1763640212355,0.76088325,91967.0,91966.0,2.16791462]
[1763640212551,0.75988325,91967.0,91966.0,2.16791462]
[1763640212783,0.76188325,91967.0,91966.0,2.16791462]
[1763640215029,0.65526337,91967.0,91966.0,2.16791462]
[1763640216791,0.68792739,91967.0,91966.0,2.16791462]
[1763640218685,0.68592739,91967.0,91966.0,2.16791462]
[1763640218879,0.68692739,91967.0,91966.0,2.16791462]
[1763640219876,0.68692739,91967.0,91964.0,0.00023185]
[1763640219877,0.59257652,91965.0,91964.0,0.00023185]
[1763640220058,0.63968923,91965.0,91964.0,0.00023185]
[1763640220256,0.69432069,91965.0,91964.0,1.08347546]
[1763640220471,0.71777649,91965.0,91964.0,1.08347546]
[1763640222278,0.71977649,91965.0,91964.0,1.08347546]
[1763640222430,0.82894143,91965.0,91964.0,1.08347546]
[1763640222632,0.82794143,91965.0,91964.0,1.08347546]
[1763640223032,0.82894143,91965.0,91964.0,1.08347546]
[1763640223438,0.82888241,91965.0,91964.0,1.08347546]
[1763640223642,0.82988241,91965.0,91964.0,1.08347546]
[1763640224018,0.82988254,91965.0,91964.0,1.08347546]
[1763640224641,0.82988254,91965.0,91964.0,0.57034606]
[1763640224852,0.59259781,91956.0,91955.0,1.08467101]
[1763640225074,0.64332016,91956.0,91955.0,1.08467101]
[1763640225298,0.6496805,91956.0,91955.0,2.16791462]
[1763640225530,0.692518,91956.0,91955.0,2.16791462]
[1763640226295,0.694518,91956.0,91955.0,2.16791462]
[1763640226842,0.68434982,91956.0,91955.0,2.16791462]
[1763640227668,0.8036814,91956.0,91955.0,2.16791462]
[1763640230560,0.8036814,91956.0,91955.0,2.16817548]
[1763640234960,0.827124,91956.0,91955.0,2.16817548]
[1763640236400,0.71795906,91956.0,91955.0,2.16817548]
[1763640239360,0.69451646,91956.0,91955.0,2.16817548]
[1763640240407,0.31573397,91956.0,91955.0,2.16817548]
[1763640240600,0.30556733,91956.0,91955.0,2.16817548]
[1763640240791,0.35766982,91956.0,91955.0,2.16817548]
[1763640241148,0.68066982,91956.0,91955.0,2.16817548]
[1763640241557,0.66213982,91956.0,91955.0,2.16817548]
[1763640241790,0.75169223,91956.0,91955.0,2.16817548]
[1763640241998,0.75269223,91956.0,91955.0,2.16817548]
[1763640243753,0.67966982,91956.0,91955.0,2.16817548]
[1763640245566,0.6304705,91956.0,91955.0,2.16817548]
[1763640247794,0.6470005,91956.0,91955.0,2.16817548]
[1763640250873,0.6304705,91956.0,91955.0,2.16817548]
[1763640252702,0.07344518,91956.0,91955.0,2.16817548]
[1763640252899,0.2909405,91956.0,91955.0,2.16817548]
[1763640253100,0.07344518,91956.0,91955.0,2.16817548]
[1763640253299,0.2909405,91956.0,91955.0,2.16817548]
[1763640253747,0.07344518,91956.0,91955.0,2.16817548]
[1763640253925,0.2909405,91956.0,91955.0,2.16817548]
[1763640255163,0.27059781,91956.0,91955.0,0.00026086]
[1763640256041,0.05310249,91956.0,91955.0,0.00026086]
[1763640256241,0.001,91956.0,91955.0,0.21775854]
[1763640256465,0.001,91956.0,91955.0,0.00026086]
[1763640256600,0.001,91956.0,91955.0,0.01104054]
[1763640256803,0.001,91956.0,91955.0,0.22853822]
[1763640257011,0.001,91956.0,91955.0,0.00026086]
[1763640257218,0.001,91956.0,91955.0,0.01104054]
[1763640257440,0.001,91956.0,91955.0,0.22853822]
[1763640258060,0.001,91956.0,91955.0,0.21775854]
[1763640258700,0.001,91956.0,91955.0,0.26172854]
[1763640259253,0.00821,91967.0,91965.0,0.21747343]
[1763640259464,0.00821,91967.0,91965.0,1.08467101]
[1763640259675,0.23354167,91966.0,91965.0,1.08467101]
[1763640260017,0.23354167,91966.0,91965.0,2.16791462]
[1763640260427,0.25007167,91966.0,91965.0,2.16791462]
[1763640261492,0.23354167,91966.0,91965.0,2.16791462]
[1763640262333,0.23454167,91966.0,91965.0,2.16791462]
[1763640262953,0.25107167,91966.0,91965.0,2.16791462]
[1763640263179,0.23454167,91966.0,91965.0,2.16791462]
[1763640264825,0.31234724,91966.0,91965.0,2.16791462]
[1763640265030,0.25107167,91966.0,91965.0,2.16791462]
[1763640266261,0.2714324,91966.0,91965.0,2.16791462]
[1763640267753,0.32353489,91966.0,91965.0,2.16791462]
[1763640268645,0.64653489,91966.0,91965.0,2.16791462]
[1763640268849,0.64553489,91966.0,91965.0,2.16791462]
[1763640269278,0.64653489,91966.0,91965.0,2.16791462]
[1763640271108,0.75569983,91966.0,91965.0,2.16791462]
[1763640272000,0.64653489,91966.0,91965.0,2.16791462]
[1763640272986,0.64653489,91966.0,91965.0,2.42688865]
[1763640272987,0.001,91966.0,91965.0,2.42688865]